Cogmind - Beta 16.1 @@@ ROGUE MODE // 2026.03.12 @ 09:46:07 Player: star Result: Destroyed by R4-8VB(R) with Subdweller Laser Performance ------------- Evolutions (0) 0 Regions Visited (2) 400 Robots Destroyed (23) 115 Value Destroyed (819) 819 Prototype IDs (13) 260 Alien Tech Used (0) 0 Bonus (0) 0 TOTAL SCORE: 1594 Bonus ------- None Cogmind --------- Core Integrity 0/250 Matter 130/300 Energy 124/125 System Corruption 0% Temperature Cool (6) Movement Rolling (130) Ox2 Location -10/Subcaves Parts ------- > --- POWER (1) -------- Light Ion Engine > --- PROPULSION (2) --- Subdweller Monowheel Subdweller Monowheel > --- UTILITY (2) ------ High-capacity Storage Unit > --- WEAPON (2) ------- Barrage Gun Subdweller Shrapnel Launcher > --- INVENTORY (20) --- Improved Aluminum Leg Large Matter Pod (150) Scrap Shield Scrap Shield Fragment (46) SUBCON Basin (Full) Peak State ------------ > --- POWER ------------ Light Ion Engine > --- PROPULSION ------- Subdweller Monowheel Subdweller Monowheel > --- UTILITY ---------- High-capacity Storage Unit > --- WEAPON ----------- Barrage Gun Subdweller Shrapnel Launcher > --- INVENTORY -------- Improved Aluminum Leg Large Matter Pod Battle Cannon Scrap Shield Fragment SUBCON Basin [Rating: 29] Favorites ----------- Power Light Ion Engine Engine Light Ion Engine Propulsion Improved Aluminum Leg Leg Improved Aluminum Leg Wheel Subdweller Monowheel Utility Scrap Shield Device Subdweller Optics Storage Small Storage Unit Protection Scrap Shield Weapon Battle Cannon Energy Gun Particle Gun Ballistic Gun Barrage Gun Ballistic Cannon Battle Cannon Launcher Subdweller Shrapnel Launcher Special Weapon Enhanced Flamer Build | -11 -10 -10 ------- Run | Yrd Mat Sub Slots Evolved . | . . . Power . | . . . Propulsion . | . . . Utility . | . . . Weapon . | . . . Parts Attached 29 | 7 4 18 Power 3 | 1 1 1 Engine 3 | 1 1 1 Core . | . . . Reactor . | . . . Propulsion 8 | 2 2 4 Treads . | . . . Leg 5 | 2 2 1 Wheel 3 | . . 3 Hover . | . . . Flight . | . . . Utility 5 | 1 . 4 Device 1 | . . 1 Storage 2 | 1 . 1 Processor . | . . . Hackware . | . . . Protection 2 | . . 2 Artifact . | . . . Weapon 13 | 3 1 9 Energy Gun 3 | 1 1 1 Energy Cannon . | . . . Ballistic Gun 5 | 2 . 3 Ballistic Cannon 2 | . . 2 Launcher 2 | . . 2 Special Weapon 1 | . . 1 Impact Weapon . | . . . Slashing Weapon . | . . . Piercing Weapon . | . . . Special Melee Weapon . | . . . Unidentified Prototypes . | . . . Parts Lost 3 | . . 3 Power . | . . . Propulsion 1 | . . 1 Utility . | . . . Weapon 2 | . . 2 Highest Loss Streak 1 | . . 1 To Critical Strikes . | . . . Average Backups 4 | . 6 4 Power . | . 1 . Propulsion . | . . . Utility 1 | . 2 1 Weapon 1 | . 2 1 Tool/Special . | . . . Unused Backups 6 | . 1 5 Power 1 | . . 1 Propulsion . | . . . Utility 5 | . 1 4 Weapon . | . . . Tool/Special . | . . . Average Slot Usage (%) 85 | . 85 85 Engine 14 | . 14 14 Leg 25 | . 28 25 Wheel 2 | . . 2 Storage 4 | . 14 2 Protection 10 | . . 12 Energy Gun 3 | . 14 1 Ballistic Gun 11 | . 14 11 Ballistic Cannon 6 | . . 7 Launcher 5 | . . 5 Special Weapon 1 | . . 1 Peak Build Rating 29 | 6 9 29 Average Rating 13 | 4 7 14 On Entrance 5 | . 6 9 Avg Prop Armor Cover (%) 3 | . . 3 Naked Turns . | . . . Heaviest Build 54 | 13 14 54 Greatest Support 40 | 20 26 40 Greatest Overweight (x) 2 | 1 . 2 Average Overweight (x) . | . . . Largest Inventory Capacity 20 | 8 8 20 Average Capacity 6 | 7 8 6 Most Carried 20 | 2 8 20 Average Carried 6 | 1 6 6 Final Capacity 20 | 8 8 20 Final Carried 20 | 2 8 20 Class Distribution -------------------- 100% | Mutant Dominant Class ---------------- Mutant | -10/Materials Mutant | -10/Subcaves Resources | -11 -10 -10 ----------- Run | Yrd Mat Sub Matter Collected 1158 | 154 141 863 Remotely . | . . . Salvage Created 710 | . 141 569 Parts 35 | . 3 32 Haulers Intercepted . | . . . Recyclers Shooed . | . . . Parts Field Recycled . | . . . Retrieved Matter . | . . . Parts Self-Destructed 17 | . . 17 Prevented . | . . . Parts Restored . | . . . Kills | -11 -10 -10 ------- Run | Yrd Mat Sub Combat Hostiles Destroyed 23 | . 3 20 Guns 9 | . 3 6 Cannons 9 | . . 9 AOE 5 | . . 5 Classes Destroyed 3 | . 1 2 Swarmer 3 | . . 3 Grunt 4 | . 3 1 Subdweller 16 | . . 16 Best Kill Streak 3 | . 1 3 Combat Bots Only 3 | . 1 3 Max Kills in Single Turn 3 | . 1 3 Gunslinging . | . . . Exploded 3 | . . 3 Melee . | . . . Uniques/NPCs Destroyed . | . . . Combat | -11 -10 -10 -------- Run | Yrd Mat Sub Hostile Shots Fired 128 | . 27 101 Missed 37 | . 6 31 Hits 91 | . 21 70 Projectile 91 | . 21 70 Critical Strikes 1 | . . 1 Damage Taken 1623 | . 273 1350 Core 272 | . 10 262 Absorbed by Shields . | . . . Ignored by Resistances 3 | . . 3 Core Remaining (%) 100 | 100 . . Volleys Fired 110 | . 24 86 Largest 2 | . 2 2 Hottest 113 | . 70 113 Shots Fired 209 | . 48 161 Gun 123 | . 48 75 Cannon 63 | . . 63 Launcher 12 | . . 12 Special 11 | . . 11 Kinetic 146 | . 24 122 Thermal 46 | . 24 22 Explosive 6 | . . 6 Electromagnetic 11 | . . 11 Robot Hit Streak 22 | . 12 22 Robot Miss Streak 4 | . 3 4 Penetration Max . | . . . Secondary Targets . | . . . Shots Hit Robots 120 | . 35 85 Core Hits 46 | . 8 38 Critical Kills . | . . . Critical Parts Destroyed . | . . . Critical Strikes 6 | . 2 4 Burn 3 | . 2 1 Blast 3 | . . 3 Melee Attacks . | . . . Impact . | . . . Slashing . | . . . Piercing . | . . . Sneak Attacks . | . . . Combat Hostiles . | . . . Follow-up Attacks . | . . . Damage Inflicted 2211 | . 387 1824 Guns 954 | . 387 567 Cannons 682 | . . 682 Explosions 487 | . . 487 Melee . | . . . Ramming . | . . . Kinetic 1477 | . 121 1356 Thermal 452 | . 266 186 Explosive 199 | . . 199 Electromagnetic 83 | . . 83 Impact . | . . . Slashing . | . . . Piercing . | . . . Highest Corruption . | . . . Average Corruption . | . . . Corruption Purged . | . . . Corruption Blocked . | . . . Overload Shots . | . . . Overflow Damage 44 | . . 44 Projectiles 7 | . . 7 Explosions 37 | . . 37 Melee . | . . . Knockbacks 10 | . . 10 Impact . | . . . Kinetic 10 | . . 10 Secondary . | . . . Self-Inflicted Damage 40 | . . 40 Shots 1 | . . 1 Rammed . | . . . Targets Rammed . | . . . Kicked . | . . . Crushed . | . . . Highest Temperature 264 | . 264 5 Average Temperature 116 | . 121 3 Received Heat Transfer 420 | . 153 267 Siege Activations . | . . . Martial Activations . | . . . Shielding Activations . | . . . Robots Disrupted . | . . . Combat Hostiles . | . . . Robots Corrupted . | . . . Combat Hostiles . | . . . Parts Fried 1 | . . 1 Impact Corruptions . | . . . Robots Melted . | . . . Combat Hostiles . | . . . Parts Melted 5 | . 4 1 Heat Transferred 1947 | . 925 1022 Parts Sabotaged . | . . . Parts Stolen . | . . . Parts Stripped . | . . . Power Chain Reactions . | . . . Alert | -11 -10 -10 ------- Run | Yrd Mat Sub Maximum Alert Level . | . . . Low Security (%) 100 | 100 100 . Level 1 . | . . . Level 2 . | . . . Level 3 . | . . . Level 4 . | . . . Level 5 . | . . . High Security . | . . . Max Security . | . . . Peak Influence 30 | . 30 . Initial . | . . . Average 2 | . 2 . Influence Increases 180 | . 70 110 Destroy 0b10 Robot/C 140 | . 60 80 Destroy Leader 10 | . 10 . Lose Combat Pursuer 30 | . . 30 Influence Decreases 180 | . 70 110 Time Decay 180 | . 70 110 Squads Dispatched . | . . . Investigation . | . . . Extermination . | . . . Reinforcement . | . . . Assault . | . . . Garrison . | . . . Intercept . | . . . Searches Triggered . | . . . Construction Impeded . | . . . Haulers Reinforced . | . . . Active Scanning Responses . | . . . Cargo Convoy Interrupts . | . . . Stealth | -11 -10 -10 --------- Run | Yrd Mat Sub Distress Signals . | . . . Communications Jammed . | . . . Distress Signals . | . . . Times Spotted 29 | . 5 24 Peak Tracking Total 6 | . 2 6 Tactical Retreats 1 | . . 1 Traps | -11 -10 -10 ------- Run | Yrd Mat Sub Traps Triggered . | . . . Indirectly . | . . . Trap Hack Attempts . | . . . Triggered . | . . . Disarmed . | . . . Reprogrammed . | . . . Reused . | . . . Traps Extracted . | . . . Installed . | . . . Triggered . | . . . Machines | -11 -10 -10 ---------- Run | Yrd Mat Sub Machines Disabled 4 | . . 4 Max in Single Turn 4 | . . 4 Machines Repaired . | . . . Machines Dismantled . | . . . Machines Sabotaged . | . . . Overloaded Fab Kills . | . . . Hacking | -11 -10 -10 --------- Run | Yrd Mat Sub Machines Accessed 4 | . 1 3 Terminals . | . . . Fabricators . | . . . Repair Stations . | . . . Recycling Units 1 | . 1 . Scanalyzers . | . . . Garrison Access . | . . . Total Hacks 5 | . 1 4 Successful 5 | . 1 4 Failed . | . . . Catastrophic . | . . . Database Lockouts . | . . . Manual . | . . . Terminals . | . . . Fabricators . | . . . Repair Stations . | . . . Recycling Units 1 | . 1 . Scanalyzers . | . . . Garrison Access . | . . . Terminal Hacks 4 | . . 4 Record 1 | . . 1 Open Door 1 | . . 1 Proto ID Catalog 1 | . . 1 Release Object 1 | . . 1 Fabricator Hacks . | . . . Repair Station Hacks . | . . . Recycling Unit Hacks 1 | . 1 . Report Inventory 1 | . 1 . Scanalyzer . | . . . Garrison Access Hacks . | . . . Unauthorized Hacks . | . . . Terminals . | . . . Fabricators . | . . . Repair Stations . | . . . Recycling Units . | . . . Scanalyzers . | . . . Garrison Access . | . . . Data Cores Recovered . | . . . Used . | . . . Hacking Detections 1 | . 1 . Full Trace Events . | . . . Feedback Events . | . . . Feedback Blocked . | . . . Robot Schematics Acquired . | . . . Robots Built . | . . . Authchips . | . . . Time . | . . . Total Robot Build Rating . | . . . Part Schematics Acquired . | . . . Parts Built . | . . . Authchips . | . . . Time . | . . . Total Part Build Rating . | . . . Part Studies Acquired . | . . . Parts Repaired . | . . . Time . | . . . Parts Recycled . | . . . Recycled Matter . | . . . Retrieved Matter . | . . . Retrieved Components . | . . . Parts Scanalyzed . | . . . Part Schematics Acquired . | . . . Parts Damaged . | . . . Bothacking | -11 -10 -10 ------------ Run | Yrd Mat Sub Used RIF Installer . | . . . Robots Hacked . | . . . Non-combat . | . . . Combat . | . . . Robot Hacks Applied . | . . . Relay Couplers Released . | . . . Fabnet Peak Effective % . | . . . Robots Rewired . | . . . Allies Hacked . | . . . Hacks Repelled . | . . . Allies | -11 -10 -10 -------- Run | Yrd Mat Sub Total Allies . | . . . Largest Group . | . . . Highest-Rated Group . | . . . Highest-Rated Ally . | . . . Total Orders . | . . . Ally Attacks . | . . . Total Damage . | . . . Kills . | . . . Allies Corrupted . | . . . Allies Melted . | . . . Intel | -11 -10 -10 ------- Run | Yrd Mat Sub Active Infowar (turns) 61 | . . 61 Optics 61 | . . 61 Robot Analysis Total . | . . . Derelict Logs Recovered 1 | . . 1 Drone Launches . | . . . Drone Recoveries . | . . . Exploration | -11 -10 -10 ------------- Run | Yrd Mat Sub Turns Passed 4275 | 59 604 3612 Spaces Moved 2466 | 42 239 2185 Core 10 | 10 . . Treads . | . . . Legs 2215 | 32 239 1944 Wheels 241 | . . 241 Hover . | . . . Flight . | . . . Fastest Speed 50 | 50 120 110 Average Speed 142 | 112 120 145 Slowest Speed 190 | 120 120 190 Overloaded Moves . | . . . Propulsion Burnouts . | . . . Robots Hopped . | . . . Potential Cave-ins 4 | . . 4 Cave-ins Triggered . | . . . Exploration Rate (%) 37 | 4 31 76 Regions Visited 2 Branch Regions 1 Pre-discovered Areas 1 | . . 1 Known Exits Taken . | . . . Unknown Exits Taken 2 | 1 1 . Scrap Searched 13 | . . 13 Spaces Dug 8 | . . 8 Terrain Destroyed 112 | . . 112 Melee . | . . . Projectile 11 | . . 11 AOE 101 | . . 101 Terrain Rammed . | . . . Walls Destroyed . | . . . Machines Disabled . | . . . Actions | -11 -10 -10 --------- Run | Yrd Mat Sub Total 3028 | 50 515 2463 Wait 354 | . 237 117 Move 2464 | 41 238 2185 Hop . | . . . Pick Up 29 | 2 7 20 Fast Attach 8 | 6 . 2 Attach 5 | . . 5 Detach . | . . . Swap 17 | 1 4 12 Drop 28 | . 5 23 Fire 110 | . 24 86 Melee . | . . . Ram . | . . . Kick . | . . . Crush . | . . . Escape Stasis . | . . . Rewire . | . . . Trap . | . . . Miscellaneous 13 | . . 13 Route ------- -11/Scrapyard -10/Materials (discovered 2 exits: [*Mat] / *Sub) -10/Subcaves (discovered 2 exits: [*Mat] / [*Rec]) History --------- Turn | Location | Event 12 | -11/Scrapyard | Discovered new exit (range 16) 60 | -11/Scrapyard | Entered Materials 301 | -10/Materials | Build established: Mutant 374 | -10/Materials | Discovered new exit (range 5) 656 | -10/Materials | Discovered new exit (range 5) 664 | -10/Materials | Entered Subcaves 989 | -10/Subcaves | Core integrity fell below 50% 1121 | -10/Subcaves | A swath of the cavern ceiling suddenly collapsed 1405 | -10/Subcaves | Learned Materials stockpile data 1618 | -10/Subcaves | Shifting Twisted Machinery released Piercing Trap 1625 | -10/Subcaves | Shifting Twisted Machinery released Battle Rifle 1996 | -10/Subcaves | Shifting Twisted Machinery released Sub. Monowheel 1999 | -10/Subcaves | Shifting Twisted Machinery released Sub. Shrapnel Launcher 2329 | -10/Subcaves | Visited 4L-MR0's lab 2407 | -10/Subcaves | Disturbed a concealed Subdweller 2570 | -10/Subcaves | Learned location of Zion (-7) 2570 | -10/Subcaves | Met a Zionite searching for "candidates" 2595 | -10/Subcaves | Discovered new exit (range 11) 2766 | -10/Subcaves | Discovered new exit (range 14) 2767 | -10/Subcaves | Core integrity fell below 20% 3971 | -10/Subcaves | Found SUBCON Basin 4263 | -10/Subcaves | Ambushed by Subdweller buried in earth 4276 | -10/Subcaves | Destroyed by R4-8VB(R) with Subdweller Laser Last Messages --------------- 03679_ Subatomizers dissect the Sub. Power Source. 03700_ Acquired 8 matter. 03949_ Acquired Sub. Monowheel. 03968_ Dropped Scrap Shield. 03971_ Acquired SUBCON Basin. 03973_ Dropped Battle Cannon. 03974_ Acquired Scrap Shield. 03995_ Connecting with SUBCON Basin Controls... >>Record "Subatomizer Containment" Subatomizers are really quite dangerous, especially when stimulated during the collection process in preparation for SEP insertion. Secure containment is priority number one! Although mostly just a persistent nuisance in their natural Subcaves environment where a certain balance has been achieved, there is a high probability that sudden introduction into previously unexposed areas could cause more extreme side effects. Take all precautions to prevent this from happening. 04090_ Sub. Monowheel shoots sparks and powers down. 04150_ Dropped Broken Sub. Monowheel. 04161_ Sub. Monowheel shoots sparks and powers down. 04264_ R4-8VB(R): "SLEEPOVER!" Map ----- +----------------------------------------------------+ | "#"" #??????????????????????### ## ## | | #" " #????????????????????????# ## # | | """ ###"#" #???????????????????????## #### ### | | #" #?######???????????????????????## #??# ## | | # " #####??????????????????????????# ####" # | | "& """ #????###???????????????????## " "" | | " "" #????#"##??????????????????# #"#" ^ | | ### ##????#""#??????????????????# #### | | ##??###????## #??????????????????# "#### ## | | ##?????##?## #??????????????????## ""####### | | ##??##"### #???????????????????## "" ##???##^ | | ####""## #???????????????????## " #????## | | ## "## ##??????????????????##" "#"""#????# | | # "## ##???????????????????# % "#"""#????# | | ### [##????????????????????#"<""#"" #???## | | ?## !%#########?????????????##%###""##??## | | ## * ! ##?????????????#####""" ### | | [ ##?????????????## | | ## ! #????????????## | | ## ## #### #????????????#" | | ?## #####??# ########??????????### % | | ?# ##?????# ##?#### ######???????## |### | | ### ##????# #### ; ##???????#### % ##? | | #"* #?#### #### R ;##?????????### #? | | & ### ## ;; ; #" ???????# #? | | % """" @ ;#" %"##& ## | | ##### " ;< *%&%& %# | | #???## " % ;#" t % *%& | | ?????## #" "" | | ??????## ## " ;;; ##" ##""# % | | ???????#### # ;; ##?"" ??##### | | ?????????# ###### ######???##????????# | | ?????????# ##????## #?????????????????# % | | ?????????# ##??????## ##?????????????????## # | | ?????????# #????????""&#???????????????????##### | | ?????????# #????????#"" #??????????????????????? | | ?????????# #????????#" ??????????????????????? | | ?????????# #?????????### ?????????????????????? | | ?????????## ##????? #??? ?????????????????????? | | ??????????# #### ###?? ?????????????????????? | | ??????????# ????????????????????? | | ???####???# " """"?????????????????????????? | | ??## ##### " "" ?????????????????????????? | | ??# " " "#?????????????????????????? | | ??# "" ""##?????????????????????????? | | ### ## " "##??????????????????????????? | | ## ## ####"" #???????????????????????????? | | ## ##???#""""#???????????????????????????? | | ## # #????? "???????????????????????????? | | ### ! ## #?????? ""???????????????????????????? | +----------------------------------------------------+ Best States ------------- Heat Dissipation 25 Energy Generation 10 Energy Capacity 250 Matter Stores 300 Matter Capacity 300 Sight Range 21 Terrain Scan Density 10 Armor Coverage 800 Resistance: TH 10 Evasion (%) 55 Item Schematics ----------------- None Robot Schematics ------------------ None Fabricated ------------ Nothing Repaired ---------- Nothing Studied --------- None Alien Tech Used ----------------- None Achievements -------------- Survival Of The Most Covered Challenges ------------ None Game ------ Seed BiocellChromionDisplacer Manual? 0 Play Time 00:25:22 Cumulative 170.5 hours Start 2026.03.12 @ 09:21:26 End 2026.03.12 @ 09:46:07 Sessions 1 Manual Loads 0 Difficulty Rogue Special Mode None Game No. 291 Rogue 291 Adventurer 0 Explorer 0 Win Type - Total 1 Types 1/0/0/0/0/0/0/0/0/0 Lore% 56 Gallery% 56 Achievement% 38 Wizard Run 0 Options --------- Layout 0 ASCII 0 Keyboard 1 Movement Numpad Keybinds 0 Fullscreen 2 Font 18/SmallcapsGlow Map View 76x50 Zoom Use 0% Tactical HUD 1 Map Filters NONE Filters NONE Steam 1 RUN: 1e505281-dae2-4306-8efb-d7809fef0738